[Event "4NCL Div 1 2024-25"]
[Site "England"]
[Date "2025.01.25"]
[Round "3.39"]
[White "Baptie, Justin P"]
[Black "Sowray, Peter J"]
[Result "1/2-1/2"]
[Annotator "TA"]
[ECO "B22"]
[WhiteElo "2099"]
[BlackElo "2205"]
[PlyCount "87"]
[EventDate "2024.11.23"]
[EventType "team-tourn"]
[EventCountry "ENG"]
[SourceTitle "playchess.com"]
[Source "ChessBase"]
[SourceQuality "1"]
[TimeControl "40/6000+30:3000+30"]

{[%evp 23,87,21,6,10,6,-5,-14,-20,-15,-27,-14,-23,-33,-38,-22,-53,-25,-45,0,-37,0,-21,0,0,0,0,0,0,0,-27,-21,-125,-131,-256,-37,-112,0,0,0,-258,-104,-108,-16,-25,-16,-59,-60,-52,-50,-86,-58,-86,-85,-101,-51,-93,0,0,0,0,0,0,0,0,0,0]} 1. e4 {[%emt 0:10:03][%cal Be2e4,Be4e5][%mdl 32]} c5 {[%emt 0:10:11]} 2. d4 {[%emt 0:00:15]} cxd4 {[%emt 0:00:07]} 3. c3 {[%emt 0:00:03]} Nf6 {[%emt 0:00:07]} 4. e5 {[%emt 0:00:06]} Nd5 {[%emt 0:00:06]} 5. Qxd4 {[%emt 0:00:16]} e6 {[%emt 0:01:06]} 6. Nf3 {[%emt 0:00:18]} Nc6 {[%emt 0:00:47]} 7. Qe4 {[%emt 0:00:23]} d6 {[%emt 0:01:53]} 8. exd6 {[%emt 0:01:18]} Bxd6 {[%emt 0:02:12]} 9. Bd3 {[%emt 0:01:11]} Nf6 {[%emt 0:06:07]} 10. Qe2 {[%emt 0:00:39]} O-O {[%emt 0:02:32]} 11. Bg5 {[%emt 0:03:56]} Be7 {[%emt 0:08:20]} 12. O-O {[%emt 0:01:27]} Qc7 {[%emt 0:03:17]} 13. Nbd2 {[%emt 0:09:49] B22: Sicilian: 2 c3.} Rd8 {[%emt 0:00:25]} 14. Bxf6 $146 {[%emt 0:11:53]} (14. Rad1 Bd7 15. Nc4 Be8 16. Bh4 b5 17. Ncd2 a6 18. Rfe1 Nh5 19. Bxe7 Qxe7 20. Ne5 g6 {1-0 Rabiega,R (2400)-Lehmann,H (2330) BL2-Nord 9192 1991}) 14... Bxf6 {[%emt 0:02:47]} 15. Ne4 {[%emt 0:00:17]} Be7 {[%emt 0:05:27]} 16. Bc2 {[%emt 0:18:51]} Bd7 {[%emt 0:04:59]} 17. Ng3 {[%emt 0:13:42]} Be8 {[%emt 0:04:24]} 18. Qe4 {[%emt 0:02:17]} g6 {[%emt 0:00:23] Successful Defense Black} 19. h4 {[%emt 0:00:17]} Bf6 {[%emt 0:04:44]} 20. h5 {[%emt 0:03:05]} Rac8 {[%emt 0:03:19]} 21. Rad1 {[%emt 0:00:37]} b5 {[%emt 0:03:28]} 22. a3 {[%emt 0:04:17]} Bg7 {[%emt 0:03:02]} 23. hxg6 {[%emt 0:02:34]} hxg6 {[%emt 0:00:08]} 24. Qh4 {[%emt 0:00:44]} Rxd1 {[%emt 0:02:09]} 25. Rxd1 {[%emt 0:00:15]} Rd8 {[%emt 0:00:10]} 26. Rxd8 {[%emt 0:02:36]} Qxd8 {[%emt 0:00:16]} 27. Ng5 {[%emt 0:01:23]} (27. Qf4 $11 {remains equal.}) 27... Qd2 $17 {[%emt 0:02:40]} 28. Bb3 {[%emt 0:10:22]} (28. Bxg6 $17 {is a better defense.} Qe1+ 29. Kh2 fxg6 30. Qh7+ Kf8 31. N3e4) 28... Na5 $2 {[%emt 0:06:10]} (28... Qxb2 $19 29. Bxe6 Qxc3) 29. Ba2 {[%emt 0:02:33]} (29. Bxe6 $15 Qe1+ 30. Kh2 Qxf2 (30... fxe6 $2 31. N3e4 $16) 31. N5e4) 29... Nc4 {[%emt 0:04:09]} (29... Qxb2 $17 30. Bxe6 Qxc3) 30. Bxc4 $11 {[%emt 0:04:11]} bxc4 {[%emt 0:00:21]} 31. Qh7+ {[%emt 0:00:02]} (31. N5e4 $1 $11 Qd5 (31... Qxb2 32. Qd8 $16) 32. Nf6+ Bxf6 33. Qxf6) 31... Kf8 $17 {[%emt 0:00:11]} 32. Qh4 {[%emt 0:00:01]} Be5 {[%emt 0:14:33]} ({Better is} 32... Qxb2 $17 33. Nh7+ Kg8 34. Nf6+ Bxf6 35. Qxf6 Qa1+ (35... Qxa3 36. Ne4 $17) 36. Kh2 Qxa3) 33. Nf3 $11 {[%emt 0:01:07]} Qc1+ {[%emt 0:01:29]} (33... Qf4 {simplifies} 34. Qxf4 Bxf4 35. Ne2 Bc7) 34. Nf1 {[%emt 0:01:01]} Bg7 {[%emt 0:01:24]} 35. Qxc4 {[%emt 0:02:06]} Qxb2 {[%emt 0:00:17]} 36. Qc5+ {[%emt 0:00:25]} Kg8 {[%emt 0:00:05]} 37. Qxa7 {[%emt 0:01:38]} Bxc3 {[%emt 0:01:34]} ({Much less strong is} 37... Qxc3 38. Qb8 Qc6 39. Ne3 $15) 38. Qe7 {[%emt 0:00:48] [#]} Qb5 {[%emt 0:01:20]} (38... Bc6 $1 $17) 39. Ng5 {[%emt 0:00:39] [#]} Be5 {[%emt 0:02:26]} (39... Qd7 $1 $17 {[%cal Rd7e7]} 40. Qc5 Bd4) 40. Ne4 $1 {[%emt 0:01:13] The position is equal.} Bc6 {[%emt 0:06:08]} 41. Nd6 $36 {[%emt 0:22:30][%mdl 2048] White has good play.} Qd5 {[%emt 0:29:58][%csl Gc6,LRd6,LRg2][%cal Rd5g2]} 42. Qxf7+ {[%emt 0:01:46]} Kh8 {[%emt 0:00:26][%csl Gc6][%cal Rd5g2]} 43. Qf8+ {[%emt 0:00:10]} Kh7 {[%emt 0:00:02][%csl Gc6][%cal Rd5g2]} 44. Qe7+ {[%emt 0:00:21] Weighted Error Value: White=0.37/Black=0.38  Missed win:     	---       	Black=1      Mistake:       	White=4     	Black=4      Inaccurate:     	White=6     	Black=5      OK:         	White=6     	Black=7      Best:        	White=5     	Black=2      Strong:       	White=1     	---} 1/2-1/2

[Event "4NCL Div 1 2024-25"]
[Site "England"]
[Date "2025.01.25"]
[Round "3.40"]
[White "Bhatia, Kanwal K"]
[Black "Pert, Nina"]
[Result "0-1"]
[Annotator "TA"]
[ECO "C06"]
[WhiteElo "1976"]
[BlackElo "1984"]
[PlyCount "54"]
[EventDate "2024.11.23"]
[EventType "team-tourn"]
[EventCountry "ENG"]
[SourceTitle "playchess.com"]
[Source "ChessBase"]
[SourceQuality "1"]
[TimeControl "40/6000+30:3000+30"]

{[%evp 19,54,71,114,75,72,33,40,0,16,20,39,0,3,-25,-17,-79,-89,-211,-237,-217,-207,-245,-160,-159,-177,-316,-308,-468,-453,-509,-501,-585,-564,-610,-579,-860,-862]} 1. e4 {[%emt 0:10:03]} e6 {[%emt 0:10:06]} 2. d4 {[%emt 0:00:05]} d5 {[%emt 0:00:05]} 3. Nd2 {[%emt 0:00:15]} Nf6 {[%emt 0:00:20]} 4. e5 {[%emt 0:00:32]} Nfd7 {[%emt 0:00:05]} 5. Ndf3 {[%emt 0:00:41]} c5 {[%emt 0:00:32]} 6. c3 {[%emt 0:00:05]} Nc6 {[%emt 0:01:51]} 7. Bd3 {[%emt 0:06:28]} cxd4 {[%emt 0:06:41]} 8. cxd4 {[%emt 0:00:19]} Qb6 {[%emt 0:05:35]} 9. Ne2 {[%emt 0:00:59]} Be7 {[%emt 0:06:33]} 10. O-O {[%emt 0:00:12]} Nf8 {[%emt 0:02:44]} 11. Re1 {[%emt 0:05:58] C06: French Tarrasch: 3...Nf6 4 e5 Nfd7 5 Bd3 main lines.} Bd7 {[%emt 0:04:01]} 12. a4 $146 {[%emt 0:09:46]} (12. Bc2 Nb4 13. Bb3 Ng6 14. Nc3 Rc8 15. Be3 Nc6 16. Qd3 O-O 17. Nd2 f6 18. f4 fxe5 19. fxe5 {½-½ Kirillov,D (1893)-Kanli,A (1397) EU-ch U10 25th 2015 (1)}) 12... Ng6 {[%emt 0:06:33]} 13. Bb1 {[%emt 0:19:20] White is slightly better.} Na5 {[%emt 0:02:17][%cal Bc6a5,Ba5c4,Bc4b2][%mdl 32]} 14. Bc2 {[%emt 0:09:22]} Rc8 {[%emt 0:01:52]} 15. Nc3 {[%emt 0:03:39]} Bb4 {[%emt 0:03:19]} 16. Re3 {[%emt 0:07:23]} Nc4 $1 {[%emt 0:12:29]} 17. Rd3 {[%emt 0:02:33] [#]} (17. Re1 $11 {remains equal.}) 17... Nf4 $1 $17 {[%emt 0:03:46] Black has more active pieces.} 18. Ng5 {[%emt 0:16:31] White does not recover from this.} Nxd3 $19 {[%emt 0:01:22]} 19. Qxd3 {[%emt 0:02:13]} Be7 {[%emt 0:02:06]} 20. b3 {[%emt 0:04:23]} Bxg5 {[%emt 0:03:23]} 21. Bxg5 {[%emt 0:00:09] [#]} Nb2 {[%emt 0:04:12]} 22. Qg3 {[%emt 0:01:04]} (22. Qd2 $142 Qb4 23. Ra2) 22... Qxd4 {[%emt 0:03:05]} 23. Ne2 {[%emt 0:00:12]} (23. Be3 $142 Qxc3 (23... Rxc3 $2 24. Bxd4 Rxg3 25. hxg3 $18) 24. Qxg7) 23... Qb4 {[%emt 0:01:11] Black is clearly winning.} 24. Bd3 {[%emt 0:03:17]} Qxb3 {[%emt 0:02:06]} 25. Nc1 {[%emt 0:01:51] [#]} Rxc1+ {[%emt 0:09:10]} 26. Bxc1 {[%emt 0:00:14]} (26. Rxc1 Qxd3) 26... Nxd3 {[%emt 0:00:13][%cal Rb3d1]} 27. Ba3 {[%emt 0:00:17]} Qc3 {[%emt 0:00:38] Weighted Error Value: White=0.87/Black=0.13 (very precise)   Mistake:       	White=4     	---        Inaccurate:     	White=5     	Black=1      OK:         	White=1     	Black=7      Best:        	---       	Black=2      Strong:       	---       	Black=2} (27... Bxa4 $2 {loses.} 28. Qxg7 Kd7 29. Qxh8 $18) 0-1

[Event "4NCL Div 1 2024-25"]
[Site "England"]
[Date "2025.01.25"]
[Round "3.41"]
[White "Emms, John M"]
[Black "Rendle, Thomas E"]
[Result "1/2-1/2"]
[Annotator "TA"]
[ECO "C47"]
[WhiteElo "2413"]
[BlackElo "2383"]
[PlyCount "51"]
[EventDate "2024.11.23"]
[EventType "team-tourn"]
[EventCountry "ENG"]
[SourceTitle "playchess.com"]
[Source "ChessBase"]
[SourceQuality "1"]
[TimeControl "40/6000+30:3000+30"]

{[%evp 18,51,23,21,25,28,22,24,21,17,24,18,16,20,16,12,28,4,16,0,24,31,24,27,20,30,29,34,51,66,1073,992,1410,1338,1768,1260]} 1. e4 {[%emt 0:10:15]} e5 {[%emt 0:10:05]} 2. Nf3 {[%emt 0:00:24]} Nc6 {[%emt 0:00:11]} 3. Nc3 {[%emt 0:00:32]} Nf6 {[%emt 0:00:27]} 4. d4 {[%emt 0:00:08]} exd4 {[%emt 0:00:06]} 5. Nxd4 {[%emt 0:00:04]} Bb4 {[%emt 0:00:06]} 6. Nxc6 {[%emt 0:00:10]} bxc6 {[%emt 0:00:08]} 7. Bd3 {[%emt 0:00:05]} O-O {[%emt 0:01:40]} 8. O-O {[%emt 0:00:16]} Re8 {[%emt 0:00:29]} 9. Bg5 $1 {[%emt 0:02:47][%cal Bc1g5,Bg5h4,Bh4g3][%mdl 32] 9.Bg5 scores better than 9.Qf3.} h6 {[%emt 0:00:42]} 10. Bh4 {[%emt 0:00:21]} d5 {[%emt 0:01:25] C47: Scotch Four Knights and Four Knights with 4 g3.} 11. exd5 {[%emt 0:01:56]} g5 {[%emt 0:02:33]} 12. Bg3 {[%emt 0:00:08]} cxd5 {[%emt 0:00:05] White has an edge.} 13. h3 {[%emt 0:03:27]} Rb8 $146 {[%emt 0:05:06][%cal Ba8b8,Bb8b6,Bb6f6][%mdl 32]} (13... c5 14. Qf3 Be6 15. Nb5 c4 16. Bf5 Rc8 17. Nxa7 Ra8 18. Nc6 Qb6 19. Nxb4 Qxb4 {0-1 Rosenberg,E (1989)-Kuzhilniy,O (2238) Titled Tuesday intern op 23rd Apr Early blitz 2024 (1)}) 14. Qf3 {[%emt 0:20:14][%cal Og3c7]} d4 {[%emt 0:02:41]} 15. Ne4 {[%emt 0:11:56]} Nxe4 {[%emt 0:01:46]} 16. Bxe4 {[%emt 0:01:33]} Rb6 $1 {[%emt 0:04:24]} 17. Bd3 {[%emt 0:26:36]} Ba5 {[%emt 0:31:29]} 18. Bc4 {[%emt 0:08:35]} Qd7 {[%emt 0:06:49][%cal Oc8b7]} 19. Rad1 {[%emt 0:05:11][%cal Od1d4]} c5 {[%emt 0:03:06][%cal Oc8b7]} 20. c3 {[%emt 0:02:58]} (20. Qa3 {simplifies} Ba6 21. Bxa6 Rxa6 22. Qxc5 Bb6 23. Qc4) 20... Bb7 $1 {[%emt 0:10:53]} 21. Qh5 $36 {[%emt 0:00:31][%cal Ob2b4][%mdl 2048] [#] and b4! should not be overlooked White is more active.} Rf6 {[%emt 0:03:52]} 22. h4 {[%emt 0:04:35]} Qc6 {[%emt 0:06:31][%csl Gb7][%cal Rc6g2]} 23. f3 {[%emt 0:00:06]} (23. hxg5 $2 Qxg2#) 23... dxc3 $2 {[%emt 0:06:49][%mdl 8192] [#]} (23... Ba6 $14 24. Bxa6 (24. hxg5 Rg6 $11) 24... Qxa6) 24. Rd6 $1 {[%emt 0:02:37][%mdl 512] White is clearly winning.} Qxd6 {[%emt 0:05:32]} (24... Ree6 25. Bxe6) 25. Bxd6 {[%emt 0:00:04]} gxh4 {[%emt 0:00:33]} 26. Be5 {[%emt 0:02:08][%mdl 32768] Weighted Error Value: White=0.13 (very precise) /Black=1.15 An unexpected result.  Loses game:     	---       	Black=1      Inaccurate:     	---       	Black=1      OK:         	White=7     	Black=9      Best:        	White=1     	---        Strong:       	---       	Black=2} 1/2-1/2

[Event "4NCL Div 1 2024-25"]
[Site "England"]
[Date "2025.01.25"]
[Round "3.42"]
[White "Lentzos, Ioanis"]
[Black "Palliser, Richard J D"]
[Result "1-0"]
[Annotator "TA"]
[ECO "A34"]
[WhiteElo "2126"]
[BlackElo "2369"]
[PlyCount "85"]
[EventDate "2024.11.23"]
[EventType "team-tourn"]
[EventCountry "ENG"]
[SourceTitle "playchess.com"]
[Source "ChessBase"]
[SourceQuality "1"]
[TimeControl "40/6000+30:3000+30"]

{[%evp 9,85,21,20,0,7,0,0,0,0,0,24,21,13,18,25,25,18,9,14,-8,-17,-12,-13,-73,-68,-84,-68,-81,-69,-72,-64,-66,-20,-18,-18,-27,-18,-9,-16,-25,-8,-14,-12,-25,-21,-38,-32,-27,-15,-27,0,0,0,0,0,0,0,0,0,0,0,0,69,67,66,66,722,714,660,228,277,249,4570,4570,4566,4562,575,377]} 1. c4 {[%emt 0:10:03]} c5 {[%emt 0:10:22]} 2. Nf3 {[%emt 0:00:12]} Nf6 {[%emt 0:01:20]} 3. Nc3 {[%emt 0:00:05]} Nc6 {[%emt 0:00:16]} 4. e3 {[%emt 0:00:33]} e5 {[%emt 0:01:28][%cal Be7e5,Be5e4][%mdl 32]} 5. d4 {[%emt 0:00:10]} e4 {[%emt 0:01:26]} 6. d5 {[%emt 0:00:11] A34: Symmetrical English: 2 Nc3, lines with ...d5.} exf3 {[%emt 0:00:17]} 7. dxc6 {[%emt 0:00:06]} dxc6 {[%emt 0:05:58]} 8. Qxd8+ {[%emt 0:00:07] The position is equal.} Kxd8 {[%emt 0:00:04]} 9. gxf3 {[%emt 0:00:04]} g6 {[%emt 0:01:15]} 10. b3 {[%emt 0:00:21]} Bg7 {[%emt 0:00:06][%cal Of6d5]} 11. Bb2 {[%emt 0:00:04]} Ke7 {[%emt 0:04:37]} 12. Ne4 {[%emt 0:03:23]} b6 {[%emt 0:03:11]} 13. Bg2 {[%emt 0:06:57]} (13. Rd1 {with more complications.} Bf5 14. Bg2 Rad8 15. Ke2) 13... Rd8 {[%emt 0:06:02]} 14. f4 $146 {[%emt 0:09:06]} (14. Nxf6 Bxf6 15. Bxf6+ Kxf6 16. f4 Rd6 17. Rd1 Rxd1+ 18. Kxd1 Bg4+ 19. Kc2 Rc8 20. Be4 {½-½ Svane,R (2628)-Iskandarov,M (2506) EU-ch 24th Petrovac 2024 (7)}) 14... Nxe4 {[%emt 0:12:42]} 15. Bxg7 {[%emt 0:00:11]} Bf5 {[%emt 0:00:04]} 16. Be5 {[%emt 0:10:59] [#]} (16. f3 $11 {keeps the balance.} Nf6 17. Bh6) 16... f6 $1 $17 {[%emt 0:02:35]} 17. f3 {[%emt 0:20:13]} fxe5 {[%emt 0:02:46]} 18. fxe4 {[%emt 0:00:19]} Bg4 {[%emt 0:02:04]} 19. h3 {[%emt 0:08:43]} Bh5 {[%emt 0:06:44]} 20. O-O $1 {[%emt 0:00:35]} Rf8 {[%emt 0:10:10]} (20... Rd3 $15 21. Rae1 Rad8) 21. Rf2 $11 {[%emt 0:04:18]} Rad8 {[%emt 0:00:25]} 22. Raf1 {[%emt 0:01:57]} Rd3 {[%emt 0:01:35]} 23. fxe5 {[%emt 0:01:17]} Rxf2 {[%emt 0:00:15]} 24. Rxf2 {[%emt 0:02:24]} Rxe3 {[%emt 0:06:10][%mdl 4096] Endgame KRB-KRB} 25. Rf6 {[%emt 0:01:10]} Re1+ {[%emt 0:01:26]} 26. Kf2 {[%emt 0:03:43]} Re2+ {[%emt 0:00:24]} 27. Kg3 {[%emt 0:00:05]} Rxa2 {[%emt 0:05:33]} 28. Rxc6 {[%emt 0:00:16]} Bd1 {[%emt 0:17:45]} 29. h4 {[%emt 0:00:08]} Bxb3 {[%emt 0:00:21]} 30. Bh3 {[%emt 0:00:10]} Bxc4 {[%emt 0:00:17] [#]} 31. Rc7+ {[%emt 0:00:06]} Kf8 {[%emt 0:03:55]} 32. Rc8+ {[%emt 0:01:23]} Ke7 {[%emt 0:00:21]} 33. Rc7+ {[%emt 0:00:04]} Kf8 {[%emt 0:00:02]} 34. Rc8+ {[%emt 0:00:05]} Kg7 {[%emt 0:01:14] aiming for ...Ra3+.} 35. Rc7+ {[%emt 0:00:06]} Kh6 {[%emt 0:00:14]} (35... Kf8 $1 $11 36. Rc8+) 36. Bd7 $14 {[%emt 0:00:12][%mdl 1024] e6 would now be deadly. White has compensation.} Re2 {[%emt 0:00:32]} 37. Kf3 {[%emt 0:00:36][%cal Od7e6]} Bd3 $2 {[%emt 0:04:15][%mdl 8192] Loses the game.} (37... Rh2 $14) 38. Bc6 $18 {[%emt 0:01:12]} Bc4 {[%emt 0:00:36] Dodges e6} 39. Bd5 $2 {[%emt 0:00:58]} (39. e6 Rd2 40. e7 (40. Rxa7 $2 {is the wrong capture.} Bxe6 41. Kf4 c4 $19)) 39... Bxd5 {[%emt 0:00:38]} 40. Kxe2 {[%emt 0:00:09]} Bxe4 {[%emt 0:00:06]} (40... Bc4+ 41. Kd2 g5) 41. e6 {[%emt 0:50:30][%cal Be5e6,Be6e7][%mdl 32] White wants to mate with e7!. White is clearly winning.} (41. Rxa7 Bf5 42. Rb7 Kh5 43. Rxh7+ (43. Rxb6 Kxh4 44. e6 Kg5 $18) 43... Kg4 $18) 41... Bd5 {[%emt 0:50:22]} 42. e7 {[%emt 0:01:22]} ({And not} 42. Rxa7 Bxe6 43. Rc7 c4 $11) 42... Bf7 {[%emt 0:00:03]} 43. Rc8 {[%emt 0:00:46] Weighted Error Value: White=0.21 (precise) /Black=0.27 (precise)   Loses game:     	---       	Black=1      Mistake:       	White=1     	Black=3      Inaccurate:     	---       	Black=1      OK:         	White=21    	Black=14     Best:        	White=6     	Black=2      Strong:       	White=1     	Black=1} 1-0

[Event "4NCL Div 1 2024-25"]
[Site "England"]
[Date "2025.01.25"]
[Round "3.43"]
[White "Chow, Samuel"]
[Black "Dobrolyubov, Alexandr K"]
[Result "1/2-1/2"]
[Annotator "TA"]
[ECO "A59"]
[WhiteElo "2348"]
[BlackElo "1951"]
[PlyCount "55"]
[EventDate "2024.11.23"]
[EventType "team-tourn"]
[EventCountry "ENG"]
[SourceTitle "playchess.com"]
[Source "ChessBase"]
[SourceQuality "1"]
[TimeControl "40/6000+30:3000+30"]

{[%evp 21,55,85,79,70,93,57,74,16,25,0,0,0,0,0,0,0,0,0,0,-14,-14,-31,-31,-8,33,0,0,0,0,0,0,-8,-7,-6,-8,-10]} 1. d4 {[%emt 0:10:12]} Nf6 {[%emt 0:10:01]} 2. c4 {[%emt 0:00:11]} c5 {[%emt 0:00:08]} 3. d5 {[%emt 0:00:11]} b5 {[%emt 0:00:05]} 4. cxb5 {[%emt 0:00:11]} a6 {[%emt 0:00:01]} 5. bxa6 {[%emt 0:00:25]} Bxa6 {[%emt 0:00:03]} 6. Nc3 {[%emt 0:00:41]} g6 {[%emt 0:00:02]} 7. e4 {[%emt 0:00:56]} Bxf1 {[%emt 0:00:05]} 8. Kxf1 {[%emt 0:00:05]} d6 {[%emt 0:00:11]} 9. Nf3 {[%emt 0:01:24]} Bg7 {[%emt 0:00:02]} 10. g3 {[%emt 0:00:30]} O-O {[%emt 0:00:03]} 11. Kg2 {[%emt 0:00:07]} Nbd7 {[%emt 0:01:28]} 12. a4 {[%emt 0:00:20]} Qa5 {[%emt 0:00:35]} 13. Qc2 {[%emt 0:08:38]} Rfb8 {[%emt 0:03:07]} 14. Rb1 {[%emt 0:04:20]} ({Better is} 14. Ra3 $16) 14... Ng4 $11 {[%emt 0:07:47]} 15. h3 {[%emt 0:08:01]} Nge5 {[%emt 0:00:02]} 16. Nxe5 {[%emt 0:01:07]} Nxe5 {[%emt 0:00:02][%cal Bd7e5,Be5c4,Bc4b2,Bb2d3][%mdl 32]} 17. b3 {[%emt 0:02:32]} c4 {[%emt 0:16:15][%cal Oe5f3]} 18. Bd2 {[%emt 0:05:46][%cal Ob3b4]} cxb3 {[%emt 0:02:38]} 19. Rxb3 {[%emt 0:00:13]} Nc4 {[%emt 0:00:22]} 20. Be1 {[%emt 0:05:34]} Qc5 {[%emt 0:13:27]} 21. Qb1 {[%emt 0:04:59]} (21. Rxb8+ $5 Rxb8 22. Nd1 $11 (22. Nb5 $2 Ne3+ 23. Kf3 Qxc2 $19)) 21... Rxb3 {[%emt 0:01:43]} 22. Qxb3 {[%emt 0:00:08]} Rc8 {[%emt 0:12:10][%cal Ba8c8,Bc8c2,Bc2a2][%mdl 32] [#] White must now prevent ...Na5.} (22... Na5 $5 23. Qb5 $8 Qd4 $11) 23. Ne2 {[%emt 0:03:33]} Nb2 {[%emt 0:10:24] The position is equal.} 24. a5 {[%emt 0:11:09]} Qc2 {[%emt 0:02:41] Dodges Bd2} 25. Qxc2 {[%emt 0:02:29]} Rxc2 {[%emt 0:00:02]} 26. a6 {[%emt 0:06:55] [#] And now a7 would win.} Nd3 $1 {[%emt 0:00:08]} 27. a7 {[%emt 0:02:15]} Ra2 {[%emt 0:00:02][%cal Oa2a7]} (27... Rxe2 $2 {loses.} 28. a8=Q+ (28. a8=B $2 {too greedy.} Nxe1+ 29. Kf1 Ra2 $19) 28... Bf8 29. Qa1 $18) 28. Bd2 {[%emt 0:03:16] Weighted Error Value: White=0.17 (very precise) /Black=0.04 (flawless) .  Mistake:       	White=1     	---        Inaccurate:     	White=2     	Black=1      OK:         	White=7     	Black=9      Best:        	---       	Black=2      Strong:       	---       	Black=1} 1/2-1/2